[Event "Titled Tuesday Blitz June 28 Early 2022"]
[White "Goltsev, Dmitry"]
[Black "Djabri,Massinas"]
[WhiteFideId "24176710"]
[BlackFideId "7905726"]
[WhiteElo "2258"]
[BlackElo "1941"]
[Result "1-0"]
[Round "03"]
[TimeControl "180+1"]
[Date "2022.06.28"]
[WhiteClock "0:01:47"]
[BlackClock "0:01:39"]

1. e4 {[%clk 0:03:00]}  e5 {[%clk 0:02:59]} 2. Nf3 {[%clk 0:03:01]}  Nc6 {[%clk 0:03:00]} 3. Bb5 {[%clk 0:03:01]}  Nf6 {[%clk 0:03:00]} 4. O-O {[%clk 0:03:01]}  Nxe4 {[%clk 0:03:01]} 5. d4 {[%clk 0:03:01]}  Nd6 {[%clk 0:03:01]} 6. Bxc6 {[%clk 0:03:01]}  dxc6 {[%clk 0:03:02]} 7. dxe5 {[%clk 0:03:02]}  Nf5 {[%clk 0:03:03]} 8. Qxd8+ {[%clk 0:03:02]}  Kxd8 {[%clk 0:03:03]} 9. Rd1+ {[%clk 0:03:02]}  Ke8 {[%clk 0:03:03]} 10. Bg5 {[%clk 0:03:00]}  Be7 {[%clk 0:03:01]} 11. Nc3 {[%clk 0:02:57]}  h6 {[%clk 0:03:00]} 12. Bxe7 {[%clk 0:02:57]}  Nxe7 {[%clk 0:03:00]} 13. h3 {[%clk 0:02:56]}  h5 {[%clk 0:02:53]} 14. Rd2 {[%clk 0:02:55]}  Bf5 {[%clk 0:02:53]} 15. Rad1 {[%clk 0:02:55]}  b6 {[%clk 0:02:51]} 16. Nd4 {[%clk 0:02:53]}  Bg6 {[%clk 0:02:42]} 17. e6 {[%clk 0:02:51]}  a6 {[%clk 0:02:34]} 18. exf7+ {[%clk 0:02:49]}  Bxf7 {[%clk 0:02:35]} 19. Re1 {[%clk 0:02:49]}  Kf8 {[%clk 0:02:34]} 20. Rde2 {[%clk 0:02:46]}  Re8 {[%clk 0:02:28]} 21. Re3 {[%clk 0:02:42]}  c5 {[%clk 0:02:27]} 22. Nf3 {[%clk 0:02:40]}  Nf5 {[%clk 0:02:20]} 23. Rxe8+ {[%clk 0:02:36]}  Bxe8 {[%clk 0:02:21]} 24. Nd5 {[%clk 0:02:29]}  Bc6 {[%clk 0:02:15]} 25. Nxc7 {[%clk 0:02:12]}  Rh6 {[%clk 0:02:10]} 26. Ne5 {[%clk 0:02:07]}  Nd4 {[%clk 0:02:03]} 27. c3 {[%clk 0:01:59]}  Nb5 {[%clk 0:01:51]} 28. Nxa6 {[%clk 0:01:54]}  Re6 {[%clk 0:01:40]} 29. Nb8 {[%clk 0:01:48]}  Be8 {[%clk 0:01:39]} 30. Ned7+ {[%clk 0:01:47]} 1-0


[Site "https://www.chess.com"]

[Event "Titled Tuesday Blitz June 28 Early 2022"]
[White "Gormally, Daniel W"]
[Black "Alinasab, Mobina"]
[WhiteFideId "406465"]
[BlackFideId "12528897"]
[WhiteElo "2543"]
[BlackElo "2031"]
[Result "1-0"]
[Round "03"]
[TimeControl "180+1"]
[Date "2022.06.28"]
[WhiteClock "0:00:09"]
[BlackClock "0:00:02"]

1. e4 {[%clk 0:02:59]}  c5 {[%clk 0:02:57]} 2. Nc3 {[%clk 0:03:00]}  e6 {[%clk 0:02:57]} 3. Nf3 {[%clk 0:02:59]}  Nc6 {[%clk 0:02:56]} 4. d4 {[%clk 0:02:58]}  cxd4 {[%clk 0:02:57]} 5. Nxd4 {[%clk 0:02:59]}  Nf6 {[%clk 0:02:57]} 6. Ndb5 {[%clk 0:02:57]}  Bb4 {[%clk 0:02:57]} 7. a3 {[%clk 0:02:57]}  Bxc3+ {[%clk 0:02:57]} 8. Nxc3 {[%clk 0:02:58]}  d5 {[%clk 0:02:57]} 9. exd5 {[%clk 0:02:58]}  exd5 {[%clk 0:02:58]} 10. Bd3 {[%clk 0:02:58]}  O-O {[%clk 0:02:59]} 11. O-O {[%clk 0:02:58]}  d4 {[%clk 0:03:00]} 12. Ne2 {[%clk 0:02:57]}  Bg4 {[%clk 0:02:59]} 13. f3 {[%clk 0:02:55]}  Bh5 {[%clk 0:02:59]} 14. b4 {[%clk 0:02:51]}  a6 {[%clk 0:02:54]} 15. Bb2 {[%clk 0:02:49]}  Nd5 {[%clk 0:02:42]} 16. Qd2 {[%clk 0:02:49]}  Qb6 {[%clk 0:02:33]} 17. Qg5 {[%clk 0:02:42]}  Nf6 {[%clk 0:02:21]} 18. Nf4 {[%clk 0:02:17]}  Bg6 {[%clk 0:02:18]} 19. Rfe1 {[%clk 0:02:15]}  Rfe8 {[%clk 0:02:15]} 20. h4 {[%clk 0:02:15]}  h6 {[%clk 0:01:46]} 21. Qg3 {[%clk 0:02:15]}  Bxd3 {[%clk 0:01:45]} 22. cxd3 {[%clk 0:02:15]}  Qc7 {[%clk 0:01:39]} 23. Rac1 {[%clk 0:02:11]}  Qd6 {[%clk 0:01:38]} 24. Kh2 {[%clk 0:02:06]}  Rad8 {[%clk 0:00:42]} 25. Re2 {[%clk 0:01:44]}  Nd5 {[%clk 0:00:14]} 26. Rce1 {[%clk 0:01:30]}  Rxe2 {[%clk 0:00:11]} 27. Nxe2 {[%clk 0:01:29]}  Qf6 {[%clk 0:00:07]} 28. Qf2 {[%clk 0:01:15]}  Nf4 {[%clk 0:00:05]} 29. Nxf4 {[%clk 0:01:08]}  Qxf4+ {[%clk 0:00:06]} 30. Qg3 {[%clk 0:01:09]}  Qf5 {[%clk 0:00:03]} 31. Re4 {[%clk 0:01:07]}  Qd7 {[%clk 0:00:02]} 32. Rg4 {[%clk 0:01:02]}  f5 {[%clk 0:00:02]} 33. Rg6 {[%clk 0:00:55]}  Kh8 {[%clk 0:00:02]} 34. h5 {[%clk 0:00:56]}  Qe7 {[%clk 0:00:02]} 35. Bc1 {[%clk 0:00:54]}  Qe5 {[%clk 0:00:01]} 36. Bf4 {[%clk 0:00:48]}  Qe7 {[%clk 0:00:01]} 37. Bxh6 {[%clk 0:00:47]}  Rg8 {[%clk 0:00:01]} 38. Bf4 {[%clk 0:00:42]}  Nd8 {[%clk 0:00:01]} 39. Bd6 {[%clk 0:00:28]}  Qf7 {[%clk 0:00:01]} 40. Be5 {[%clk 0:00:26]}  Kh7 {[%clk 0:00:02]} 41. Bxd4 {[%clk 0:00:22]}  Ne6 {[%clk 0:00:02]} 42. Be5 {[%clk 0:00:23]}  f4 {[%clk 0:00:02]} 43. Qg4 {[%clk 0:00:23]}  Nf8 {[%clk 0:00:02]} 44. Rg5 {[%clk 0:00:19]}  Qd7 {[%clk 0:00:02]} 45. Qxf4 {[%clk 0:00:15]}  Qe6 {[%clk 0:00:02]} 46. Qe4+ {[%clk 0:00:15]}  Kh8 {[%clk 0:00:03]} 47. d4 {[%clk 0:00:09]}  Qh6 {[%clk 0:00:03]} 48. Qg4 {[%clk 0:00:09]}  Nh7 {[%clk 0:00:02]} 49. Rg6 {[%clk 0:00:09]}  Qe3 {[%clk 0:00:02]} 50. Rxg7 {[%clk 0:00:09]} 1-0


[Site "https://www.chess.com"]

[Event "Titled Tuesday Blitz June 28 Early 2022"]
[White "Gueci, Tea"]
[Black "Thiel, Thomas"]
[WhiteFideId "872342"]
[BlackFideId "4615964"]
[WhiteElo "2142"]
[BlackElo "2249"]
[Result "0-1"]
[Round "03"]
[TimeControl "180+1"]
[Date "2022.06.28"]
[WhiteClock "0:00:02"]
[BlackClock "0:00:13"]

1. e4 {[%clk 0:03:00]}  d5 {[%clk 0:02:58]} 2. exd5 {[%clk 0:03:00]}  Nf6 {[%clk 0:02:58]} 3. Nc3 {[%clk 0:02:57]}  Nxd5 {[%clk 0:02:58]} 4. Nxd5 {[%clk 0:02:54]}  Qxd5 {[%clk 0:02:56]} 5. Nf3 {[%clk 0:02:54]}  Nc6 {[%clk 0:02:53]} 6. Be2 {[%clk 0:02:54]}  g6 {[%clk 0:02:53]} 7. O-O {[%clk 0:02:53]}  Bg7 {[%clk 0:02:53]} 8. c3 {[%clk 0:02:49]}  O-O {[%clk 0:02:51]} 9. d4 {[%clk 0:02:48]}  e5 {[%clk 0:02:51]} 10. dxe5 {[%clk 0:02:47]}  Qxd1 {[%clk 0:02:49]} 11. Rxd1 {[%clk 0:02:48]}  Nxe5 {[%clk 0:02:47]} 12. Bf4 {[%clk 0:02:47]}  Nxf3+ {[%clk 0:02:46]} 13. Bxf3 {[%clk 0:02:47]}  c6 {[%clk 0:02:45]} 14. Rd2 {[%clk 0:02:40]}  Be6 {[%clk 0:02:44]} 15. a4 {[%clk 0:02:31]}  Bb3 {[%clk 0:02:32]} 16. a5 {[%clk 0:02:31]}  a6 {[%clk 0:02:27]} 17. Bc7 {[%clk 0:02:27]}  Rfe8 {[%clk 0:02:22]} 18. g3 {[%clk 0:02:26]}  Be6 {[%clk 0:02:09]} 19. Bb6 {[%clk 0:02:23]}  Bf6 {[%clk 0:02:06]} 20. h4 {[%clk 0:02:09]}  Bd8 {[%clk 0:02:04]} 21. Bd4 {[%clk 0:02:03]}  Be7 {[%clk 0:01:56]} 22. h5 {[%clk 0:01:58]}  Rad8 {[%clk 0:01:53]} 23. hxg6 {[%clk 0:01:58]}  hxg6 {[%clk 0:01:51]} 24. Re2 {[%clk 0:01:37]}  Bf8 {[%clk 0:01:48]} 25. Kg2 {[%clk 0:01:34]}  Bg7 {[%clk 0:01:47]} 26. Bb6 {[%clk 0:01:33]}  Rd3 {[%clk 0:01:43]} 27. Be4 {[%clk 0:01:32]}  Rd7 {[%clk 0:01:41]} 28. Rae1 {[%clk 0:01:26]}  Rc8 {[%clk 0:01:32]} 29. f4 {[%clk 0:01:24]}  Bf8 {[%clk 0:01:31]} 30. Rf2 {[%clk 0:01:15]}  Bd5 {[%clk 0:01:28]} 31. f5 {[%clk 0:01:08]}  Re8 {[%clk 0:01:22]} 32. Rfe2 {[%clk 0:01:02]}  Rxe4 {[%clk 0:01:21]} 33. Rxe4 {[%clk 0:01:03]}  Re7 {[%clk 0:01:20]} 34. c4 {[%clk 0:00:30]}  Rxe4 {[%clk 0:01:19]} 35. Kf2 {[%clk 0:00:27]}  Rxc4 {[%clk 0:01:18]} 36. fxg6 {[%clk 0:00:27]}  fxg6 {[%clk 0:01:17]} 37. Re8 {[%clk 0:00:27]}  Kf7 {[%clk 0:01:17]} 38. Rb8 {[%clk 0:00:27]}  c5 {[%clk 0:01:16]} 39. Rd8 {[%clk 0:00:26]}  Bc6 {[%clk 0:01:13]} 40. Rc8 {[%clk 0:00:20]}  Be7 {[%clk 0:01:12]} 41. Rc7 {[%clk 0:00:18]}  Ke6 {[%clk 0:01:10]} 42. Ke3 {[%clk 0:00:18]}  Rb4 {[%clk 0:01:09]} 43. Rc8 {[%clk 0:00:17]}  Rb3+ {[%clk 0:01:07]} 44. Kf4 {[%clk 0:00:16]}  Rxb2 {[%clk 0:01:06]} 45. Rg8 {[%clk 0:00:15]}  Kf7 {[%clk 0:01:03]} 46. Rh8 {[%clk 0:00:15]}  c4 {[%clk 0:01:01]} 47. Bd4 {[%clk 0:00:11]}  Rb5 {[%clk 0:00:57]} 48. Rh7+ {[%clk 0:00:12]}  Ke6 {[%clk 0:00:55]} 49. Rg7 {[%clk 0:00:12]}  Rf5+ {[%clk 0:00:53]} 50. Ke3 {[%clk 0:00:11]}  g5 {[%clk 0:00:51]} 51. Rg6+ {[%clk 0:00:11]}  Kd5 {[%clk 0:00:50]} 52. g4 {[%clk 0:00:09]}  Rf7 {[%clk 0:00:46]} 53. Bh8 {[%clk 0:00:07]}  Bc5+ {[%clk 0:00:45]} 54. Kd2 {[%clk 0:00:07]}  Rh7 {[%clk 0:00:41]} 55. Bc3 {[%clk 0:00:06]}  Rh2+ {[%clk 0:00:40]} 56. Kc1 {[%clk 0:00:06]}  Rh3 {[%clk 0:00:40]} 57. Rxg5+ {[%clk 0:00:06]}  Ke4 {[%clk 0:00:40]} 58. Bg7 {[%clk 0:00:05]}  Ba3+ {[%clk 0:00:38]} 59. Kc2 {[%clk 0:00:04]}  Ba4+ {[%clk 0:00:36]} 60. Kd2 {[%clk 0:00:04]}  Bb4+ {[%clk 0:00:33]} 61. Ke2 {[%clk 0:00:04]}  Rh2+ {[%clk 0:00:32]} 62. Kf1 {[%clk 0:00:04]}  c3 {[%clk 0:00:31]} 63. Re5+ {[%clk 0:00:04]}  Kd3 {[%clk 0:00:30]} 64. Rd5+ {[%clk 0:00:03]}  Kc2 {[%clk 0:00:29]} 65. Rd4 {[%clk 0:00:04]}  Bb5+ {[%clk 0:00:28]} 66. Kg1 {[%clk 0:00:04]}  Rd2 {[%clk 0:00:24]} 67. Rxb4 {[%clk 0:00:04]}  Rd3 {[%clk 0:00:22]} 68. g5 {[%clk 0:00:02]}  Rg3+ {[%clk 0:00:19]} 69. Kf2 {[%clk 0:00:03]}  Rxg5 {[%clk 0:00:19]} 70. Bd4 {[%clk 0:00:02]}  Rf5+ {[%clk 0:00:19]} 71. Ke3 {[%clk 0:00:02]}  Rf8 {[%clk 0:00:13]} 0-1


[Site "https://www.chess.com"]

[Event "Titled Tuesday Blitz June 28 Early 2022"]
[White "Guz, Ari"]
[Black "Moussard, Jules"]
[WhiteFideId "2825759"]
[BlackFideId "642908"]
[WhiteElo "1913"]
[BlackElo "2589"]
[Result "0-1"]
[Round "03"]
[TimeControl "180+1"]
[Date "2022.06.28"]
[WhiteClock "0:01:31"]
[BlackClock "0:01:37"]

1. e4 {[%clk 0:03:00]}  c6 {[%clk 0:02:54]} 2. Nf3 {[%clk 0:03:00]}  d5 {[%clk 0:02:55]} 3. Nc3 {[%clk 0:03:01]}  dxe4 {[%clk 0:02:51]} 4. Nxe4 {[%clk 0:03:01]}  Nf6 {[%clk 0:02:51]} 5. Qe2 {[%clk 0:03:02]}  Nxe4 {[%clk 0:02:52]} 6. Qxe4 {[%clk 0:03:03]}  Nd7 {[%clk 0:02:52]} 7. Bc4 {[%clk 0:03:02]}  Nf6 {[%clk 0:02:53]} 8. Ne5 {[%clk 0:03:03]}  e6 {[%clk 0:02:54]} 9. Qe2 {[%clk 0:03:04]}  b5 {[%clk 0:02:54]} 10. Bd3 {[%clk 0:03:04]}  Bb7 {[%clk 0:02:53]} 11. b3 {[%clk 0:03:05]}  Bd6 {[%clk 0:02:53]} 12. Bb2 {[%clk 0:03:05]}  Qc7 {[%clk 0:02:53]} 13. f4 {[%clk 0:03:05]}  a6 {[%clk 0:02:53]} 14. O-O-O {[%clk 0:03:05]}  c5 {[%clk 0:02:52]} 15. Rhg1 {[%clk 0:02:56]}  O-O-O {[%clk 0:02:52]} 16. g3 {[%clk 0:02:49]}  Kb8 {[%clk 0:02:50]} 17. Kb1 {[%clk 0:02:45]}  Nd5 {[%clk 0:02:42]} 18. Be4 {[%clk 0:02:38]}  f6 {[%clk 0:02:40]} 19. Nf3 {[%clk 0:02:39]}  c4 {[%clk 0:02:38]} 20. bxc4 {[%clk 0:02:14]}  bxc4 {[%clk 0:02:38]} 21. Ka1 {[%clk 0:02:14]}  Ka8 {[%clk 0:02:28]} 22. Rb1 {[%clk 0:02:13]}  Rhe8 {[%clk 0:02:28]} 23. Nd4 {[%clk 0:01:57]}  e5 {[%clk 0:02:18]} 24. Nf5 {[%clk 0:01:48]}  exf4 {[%clk 0:02:08]} 25. Nxd6 {[%clk 0:01:41]}  Rxd6 {[%clk 0:02:06]} 26. Qg2 {[%clk 0:01:41]}  Rxe4 {[%clk 0:01:36]} 27. Qxe4 {[%clk 0:01:42]}  Nb4 {[%clk 0:01:36]} 28. Qe8+ {[%clk 0:01:30]}  Rd8 {[%clk 0:01:37]} 29. Qa4 {[%clk 0:01:31]}  Qa5 {[%clk 0:01:37]} 0-1


[Site "https://www.chess.com"]

[Event "Titled Tuesday Blitz June 28 Early 2022"]
[White "Haas, Michael"]
[Black "Manukian, Artak"]
[WhiteFideId "1629514"]
[BlackFideId "13301373"]
[WhiteElo "1982"]
[BlackElo "2477"]
[Result "1-0"]
[Round "03"]
[TimeControl "180+1"]
[Date "2022.06.28"]
[WhiteClock "0:00:45"]
[BlackClock "0:00:01"]

1. d4 {[%clk 0:02:58]}  Nf6 {[%clk 0:02:58]} 2. c4 {[%clk 0:02:58]}  g6 {[%clk 0:02:56]} 3. g3 {[%clk 0:02:58]}  Bg7 {[%clk 0:02:53]} 4. Bg2 {[%clk 0:02:59]}  O-O {[%clk 0:02:49]} 5. Nc3 {[%clk 0:02:59]}  d6 {[%clk 0:02:48]} 6. Nf3 {[%clk 0:02:57]}  Nbd7 {[%clk 0:02:48]} 7. O-O {[%clk 0:02:55]}  e5 {[%clk 0:02:45]} 8. e4 {[%clk 0:02:55]}  c6 {[%clk 0:02:41]} 9. h3 {[%clk 0:02:55]}  Qe7 {[%clk 0:02:27]} 10. Re1 {[%clk 0:02:52]}  Re8 {[%clk 0:02:17]} 11. d5 {[%clk 0:02:36]}  cxd5 {[%clk 0:02:14]} 12. cxd5 {[%clk 0:02:37]}  a5 {[%clk 0:02:12]} 13. Be3 {[%clk 0:02:36]}  Nc5 {[%clk 0:02:07]} 14. Nd2 {[%clk 0:02:36]}  h5 {[%clk 0:02:05]} 15. a4 {[%clk 0:02:34]}  Kh7 {[%clk 0:01:51]} 16. Bxc5 {[%clk 0:02:22]}  dxc5 {[%clk 0:01:48]} 17. Nc4 {[%clk 0:02:22]}  Nd7 {[%clk 0:01:37]} 18. Nb5 {[%clk 0:02:19]}  h4 {[%clk 0:01:34]} 19. Nc7 {[%clk 0:02:16]}  hxg3 {[%clk 0:01:25]} 20. fxg3 {[%clk 0:02:17]}  Ra6 {[%clk 0:01:20]} 21. Nxa6 {[%clk 0:02:12]}  bxa6 {[%clk 0:01:20]} 22. Nxa5 {[%clk 0:02:10]}  Qg5 {[%clk 0:01:14]} 23. Kh2 {[%clk 0:02:08]}  f5 {[%clk 0:01:06]} 24. Qc1 {[%clk 0:02:00]}  f4 {[%clk 0:01:05]} 25. g4 {[%clk 0:01:54]}  Qh4 {[%clk 0:00:57]} 26. Qc3 {[%clk 0:01:52]}  Nf6 {[%clk 0:00:56]} 27. Kg1 {[%clk 0:01:47]}  Bxg4 {[%clk 0:00:48]} 28. hxg4 {[%clk 0:01:45]}  Nxg4 {[%clk 0:00:48]} 29. Qh3 {[%clk 0:01:45]}  Bf6 {[%clk 0:00:41]} 30. Qxh4+ {[%clk 0:01:44]}  Bxh4 {[%clk 0:00:42]} 31. Rf1 {[%clk 0:01:44]}  Ne3 {[%clk 0:00:38]} 32. Rf3 {[%clk 0:01:35]}  g5 {[%clk 0:00:35]} 33. Rh3 {[%clk 0:01:22]}  Rb8 {[%clk 0:00:29]} 34. b3 {[%clk 0:01:20]}  Kg6 {[%clk 0:00:24]} 35. Rc1 {[%clk 0:01:14]}  Bg3 {[%clk 0:00:20]} 36. Rxc5 {[%clk 0:01:12]}  g4 {[%clk 0:00:19]} 37. Rxg3 {[%clk 0:01:11]}  fxg3 {[%clk 0:00:19]} 38. Rc6+ {[%clk 0:01:11]}  Kg5 {[%clk 0:00:19]} 39. d6 {[%clk 0:01:04]}  Rb4 {[%clk 0:00:15]} 40. Rc1 {[%clk 0:00:46]}  Rd4 {[%clk 0:00:11]} 41. Nc4 {[%clk 0:00:46]}  Nxc4 {[%clk 0:00:02]} 42. bxc4 {[%clk 0:00:45]}  Rxd6 {[%clk 0:00:02]} 43. c5 {[%clk 0:00:45]}  Rd8 {[%clk 0:00:01]} 44. c6 {[%clk 0:00:45]} 1-0


[Site "https://www.chess.com"]

[Event "Titled Tuesday Blitz June 28 Early 2022"]
[White "Hambleton, Aman"]
[Black "Daeschler, Florian"]
[WhiteFideId "2606577"]
[BlackFideId "20678193"]
[WhiteElo "2552"]
[BlackElo "2221"]
[Result "0-1"]
[Round "03"]
[TimeControl "180+1"]
[Date "2022.06.28"]
[WhiteClock "0:00:02"]
[BlackClock "0:00:08"]

1. d4 {[%clk 0:03:00]}  d5 {[%clk 0:02:57]} 2. Bf4 {[%clk 0:03:00]}  Nf6 {[%clk 0:02:57]} 3. e3 {[%clk 0:03:00]}  c5 {[%clk 0:02:57]} 4. c3 {[%clk 0:03:00]}  Nc6 {[%clk 0:02:57]} 5. Nd2 {[%clk 0:03:00]}  cxd4 {[%clk 0:02:57]} 6. exd4 {[%clk 0:03:00]}  Bf5 {[%clk 0:02:57]} 7. Qb3 {[%clk 0:03:00]}  Qc8 {[%clk 0:02:56]} 8. Ngf3 {[%clk 0:03:01]}  e6 {[%clk 0:02:56]} 9. Nh4 {[%clk 0:03:01]}  Be4 {[%clk 0:02:55]} 10. f3 {[%clk 0:03:01]}  Bg6 {[%clk 0:02:53]} 11. g3 {[%clk 0:02:43]}  Be7 {[%clk 0:02:52]} 12. Be3 {[%clk 0:01:32]}  Bd6 {[%clk 0:02:35]} 13. Nxg6 {[%clk 0:00:04]}  hxg6 {[%clk 0:02:34]} 14. Bf2 {[%clk 0:00:05]}  Ne7 {[%clk 0:02:21]} 15. O-O-O {[%clk 0:00:04]}  a6 {[%clk 0:02:18]} 16. Kb1 {[%clk 0:00:04]}  b5 {[%clk 0:02:13]} 17. Bd3 {[%clk 0:00:04]}  Nc6 {[%clk 0:02:10]} 18. f4 {[%clk 0:00:04]}  Na5 {[%clk 0:02:07]} 19. Qc2 {[%clk 0:00:04]}  Nc4 {[%clk 0:02:07]} 20. Nf3 {[%clk 0:00:05]}  Rb8 {[%clk 0:02:02]} 21. Qe2 {[%clk 0:00:05]}  Kf8 {[%clk 0:01:54]} 22. Ne5 {[%clk 0:00:06]}  b4 {[%clk 0:01:36]} 23. cxb4 {[%clk 0:00:06]}  Rxb4 {[%clk 0:01:34]} 24. b3 {[%clk 0:00:06]}  Na3+ {[%clk 0:01:25]} 25. Kb2 {[%clk 0:00:04]}  Rb6 {[%clk 0:01:11]} 26. Rc1 {[%clk 0:00:04]}  Qb7 {[%clk 0:01:07]} 27. g4 {[%clk 0:00:04]}  Ne4 {[%clk 0:01:05]} 28. Bxe4 {[%clk 0:00:04]}  dxe4 {[%clk 0:01:05]} 29. Bg3 {[%clk 0:00:04]}  Nb5 {[%clk 0:00:55]} 30. Rhe1 {[%clk 0:00:03]}  Ba3+ {[%clk 0:00:50]} 31. Ka1 {[%clk 0:00:02]}  Bxc1 {[%clk 0:00:43]} 32. Rxc1 {[%clk 0:00:03]}  Ke7 {[%clk 0:00:38]} 33. Qc4 {[%clk 0:00:01]}  Rd8 {[%clk 0:00:29]} 34. Nc6+ {[%clk 0:00:01]}  Rxc6 {[%clk 0:00:24]} 35. Qxc6 {[%clk 0:00:02]}  Qxc6 {[%clk 0:00:22]} 36. Rxc6 {[%clk 0:00:03]}  Rxd4 {[%clk 0:00:22]} 37. Rxa6 {[%clk 0:00:02]}  e3 {[%clk 0:00:19]} 38. Rb6 {[%clk 0:00:02]}  Nc3 {[%clk 0:00:18]} 39. Kb2 {[%clk 0:00:02]}  Ne4 {[%clk 0:00:17]} 40. Rb7+ {[%clk 0:00:02]}  Ke8 {[%clk 0:00:13]} 41. Be1 {[%clk 0:00:02]}  e2 {[%clk 0:00:10]} 42. Rb8+ {[%clk 0:00:03]}  Kd7 {[%clk 0:00:09]} 43. Rb7+ {[%clk 0:00:03]}  Kc6 {[%clk 0:00:09]} 44. Rxf7 {[%clk 0:00:03]}  Rd1 {[%clk 0:00:09]} 45. Bb4 {[%clk 0:00:04]}  Nd2 {[%clk 0:00:08]} 46. Kc2 {[%clk 0:00:02]}  e1=Q {[%clk 0:00:08]} 0-1


[Site "https://www.chess.com"]

[Event "Titled Tuesday Blitz June 28 Early 2022"]
[White "Ider, Borya"]
[Black "Reprintsev, Alexander"]
[WhiteFideId "4901134"]
[BlackFideId "14100541"]
[WhiteElo "2512"]
[BlackElo "2108"]
[Result "1-0"]
[Round "03"]
[TimeControl "180+1"]
[Date "2022.06.28"]
[WhiteClock "0:00:52"]
[BlackClock "0:01:00"]

1. Nf3 {[%clk 0:03:00]}  d5 {[%clk 0:02:58]} 2. g3 {[%clk 0:03:00]}  Nc6 {[%clk 0:02:57]} 3. Bg2 {[%clk 0:03:00]}  Bg4 {[%clk 0:02:56]} 4. d4 {[%clk 0:02:59]}  Qd7 {[%clk 0:02:55]} 5. h3 {[%clk 0:02:55]}  Bxf3 {[%clk 0:02:55]} 6. Bxf3 {[%clk 0:02:55]}  f5 {[%clk 0:02:52]} 7. c4 {[%clk 0:02:51]}  e6 {[%clk 0:02:51]} 8. Nc3 {[%clk 0:02:51]}  Nf6 {[%clk 0:02:50]} 9. cxd5 {[%clk 0:02:50]}  exd5 {[%clk 0:02:50]} 10. Bg5 {[%clk 0:02:49]}  Ne4 {[%clk 0:02:49]} 11. Bxe4 {[%clk 0:02:22]}  fxe4 {[%clk 0:02:44]} 12. e3 {[%clk 0:02:21]}  Be7 {[%clk 0:02:29]} 13. Bxe7 {[%clk 0:01:51]}  Nxe7 {[%clk 0:02:28]} 14. Qh5+ {[%clk 0:01:46]}  g6 {[%clk 0:02:27]} 15. Qe2 {[%clk 0:01:37]}  O-O {[%clk 0:02:22]} 16. h4 {[%clk 0:01:38]}  c5 {[%clk 0:02:14]} 17. dxc5 {[%clk 0:01:37]}  Rac8 {[%clk 0:02:13]} 18. Rd1 {[%clk 0:01:32]}  Rxc5 {[%clk 0:02:12]} 19. Nxe4 {[%clk 0:01:30]}  Ra5 {[%clk 0:01:43]} 20. Nc3 {[%clk 0:01:28]}  Nf5 {[%clk 0:01:38]} 21. O-O {[%clk 0:01:22]}  d4 {[%clk 0:01:37]} 22. exd4 {[%clk 0:01:20]}  Kg7 {[%clk 0:01:31]} 23. d5 {[%clk 0:01:16]}  Re8 {[%clk 0:01:30]} 24. Qd2 {[%clk 0:01:13]}  b5 {[%clk 0:01:27]} 25. a3 {[%clk 0:01:01]}  Ra6 {[%clk 0:01:20]} 26. Rfe1 {[%clk 0:01:00]}  Rd8 {[%clk 0:01:15]} 27. Ne4 {[%clk 0:00:58]}  Rb6 {[%clk 0:01:04]} 28. Qc3+ {[%clk 0:00:56]}  Kh6 {[%clk 0:01:01]} 29. Qc1+ {[%clk 0:00:53]}  Kg7 {[%clk 0:01:00]} 30. Nc5 {[%clk 0:00:52]} 1-0


[Site "https://www.chess.com"]

[Event "Titled Tuesday Blitz June 28 Early 2022"]
[White "Ismayil, Malak"]
[Black "Hartikainen, Jarmo"]
[WhiteFideId "13412604"]
[BlackFideId "503134"]
[WhiteElo "1879"]
[BlackElo "2154"]
[Result "1-0"]
[Round "03"]
[TimeControl "180+1"]
[Date "2022.06.28"]
[WhiteClock "0:00:17"]
[BlackClock "0:00:03"]

1. e4 {[%clk 0:03:00]}  c5 {[%clk 0:02:59]} 2. Nf3 {[%clk 0:03:00]}  Nc6 {[%clk 0:02:59]} 3. Bb5 {[%clk 0:02:58]}  g6 {[%clk 0:02:59]} 4. O-O {[%clk 0:02:56]}  Bg7 {[%clk 0:02:59]} 5. Bxc6 {[%clk 0:02:55]}  dxc6 {[%clk 0:02:59]} 6. d3 {[%clk 0:02:53]}  Bg4 {[%clk 0:02:59]} 7. h3 {[%clk 0:02:53]}  Bxf3 {[%clk 0:02:59]} 8. Qxf3 {[%clk 0:02:54]}  e5 {[%clk 0:03:00]} 9. Be3 {[%clk 0:02:51]}  b6 {[%clk 0:02:58]} 10. Nd2 {[%clk 0:02:48]}  Nf6 {[%clk 0:02:55]} 11. Qg3 {[%clk 0:02:46]}  Nd7 {[%clk 0:02:53]} 12. Rae1 {[%clk 0:02:44]}  O-O {[%clk 0:02:52]} 13. b3 {[%clk 0:02:43]}  Qe7 {[%clk 0:02:30]} 14. f4 {[%clk 0:02:41]}  f5 {[%clk 0:02:29]} 15. Kh1 {[%clk 0:02:33]}  Rae8 {[%clk 0:02:28]} 16. fxe5 {[%clk 0:02:24]}  fxe4 {[%clk 0:02:08]} 17. Nxe4 {[%clk 0:02:22]}  Rxf1+ {[%clk 0:02:06]} 18. Rxf1 {[%clk 0:02:21]}  Qxe5 {[%clk 0:01:59]} 19. Bf4 {[%clk 0:02:18]}  Qb2 {[%clk 0:01:47]} 20. Qg4 {[%clk 0:02:11]}  Nf6 {[%clk 0:01:39]} 21. Nxf6+ {[%clk 0:02:10]}  Qxf6 {[%clk 0:01:39]} 22. Qf3 {[%clk 0:02:05]}  Qe6 {[%clk 0:01:32]} 23. Bg3 {[%clk 0:01:59]}  Rf8 {[%clk 0:01:25]} 24. Qd1 {[%clk 0:01:54]}  Rxf1+ {[%clk 0:01:22]} 25. Qxf1 {[%clk 0:01:55]}  h6 {[%clk 0:00:51]} 26. a4 {[%clk 0:01:49]}  a6 {[%clk 0:00:47]} 27. Qf3 {[%clk 0:01:40]}  b5 {[%clk 0:00:42]} 28. axb5 {[%clk 0:01:38]}  cxb5 {[%clk 0:00:39]} 29. Bf2 {[%clk 0:01:35]}  Bd4 {[%clk 0:00:22]} 30. Bxd4 {[%clk 0:01:20]}  cxd4 {[%clk 0:00:23]} 31. Qf4 {[%clk 0:01:20]}  Qe1+ {[%clk 0:00:19]} 32. Kh2 {[%clk 0:01:20]}  Qe3 {[%clk 0:00:19]} 33. Qb8+ {[%clk 0:01:10]}  Kg7 {[%clk 0:00:20]} 34. Qc7+ {[%clk 0:01:08]}  Kg8 {[%clk 0:00:19]} 35. Qd8+ {[%clk 0:01:06]}  Kg7 {[%clk 0:00:19]} 36. Qd7+ {[%clk 0:01:03]}  Kg8 {[%clk 0:00:19]} 37. Qd5+ {[%clk 0:01:03]}  Kg7 {[%clk 0:00:19]} 38. Qb7+ {[%clk 0:01:00]}  Kg8 {[%clk 0:00:19]} 39. Qb8+ {[%clk 0:01:00]}  Kg7 {[%clk 0:00:19]} 40. h4 {[%clk 0:00:57]}  h5 {[%clk 0:00:18]} 41. Qd6 {[%clk 0:00:45]}  Kf7 {[%clk 0:00:15]} 42. Qd5+ {[%clk 0:00:45]}  Kg7 {[%clk 0:00:15]} 43. Qd7+ {[%clk 0:00:44]}  Kg8 {[%clk 0:00:14]} 44. Qd6 {[%clk 0:00:41]}  Kg7 {[%clk 0:00:14]} 45. b4 {[%clk 0:00:24]}  Kf7 {[%clk 0:00:05]} 46. Qg3 {[%clk 0:00:17]}  Qxg3+ {[%clk 0:00:02]} 47. Kxg3 {[%clk 0:00:18]}  Kf6 {[%clk 0:00:02]} 48. Kf4 {[%clk 0:00:19]}  g5+ {[%clk 0:00:02]} 49. hxg5+ {[%clk 0:00:18]}  Kg6 {[%clk 0:00:03]} 50. g3 {[%clk 0:00:17]} 1-0


[Site "https://www.chess.com"]